[Event "Titled Tuesday Blitz May 9 Early 2023"]
[White "Bilan, Danila"]
[Black "Carlsen, Magnus"]
[WhiteFideId "24161918"]
[BlackFideId "1503014"]
[WhiteElo "2182"]
[BlackElo "2852"]
[Result "0-1"]
[Round "01"]
[TimeControl "180+2"]
[Date "2023.05.09"]
[WhiteClock "0:00:00"]
[BlackClock "0:00:28"]

1. d4 {[%clk 0:02:55]}  a6 {[%clk 0:03:00]} 2. Nf3 {[%clk 0:02:55]}  d5 {[%clk 0:02:56]} 3. c4 {[%clk 0:02:54]}  dxc4 {[%clk 0:02:55]} 4. e3 {[%clk 0:02:41]}  Bg4 {[%clk 0:02:54]} 5. Bxc4 {[%clk 0:02:40]}  e6 {[%clk 0:02:55]} 6. Qb3 {[%clk 0:02:37]}  Bxf3 {[%clk 0:02:20]} 7. gxf3 {[%clk 0:02:36]}  b5 {[%clk 0:02:17]} 8. Be2 {[%clk 0:02:31]}  c5 {[%clk 0:02:17]} 9. dxc5 {[%clk 0:02:20]}  Bxc5 {[%clk 0:02:11]} 10. Qc3 {[%clk 0:02:04]}  Bf8 {[%clk 0:02:10]} 11. O-O {[%clk 0:01:52]}  Nf6 {[%clk 0:02:05]} 12. f4 {[%clk 0:01:40]}  Nbd7 {[%clk 0:02:05]} 13. Bf3 {[%clk 0:01:37]}  Rc8 {[%clk 0:01:54]} 14. Qd3 {[%clk 0:01:14]}  g5 {[%clk 0:01:54]} 15. f5 {[%clk 0:00:59]}  Ne5 {[%clk 0:01:53]} 16. Qxd8+ {[%clk 0:00:36]}  Rxd8 {[%clk 0:01:53]} 17. Bb7 {[%clk 0:00:35]}  Rb8 {[%clk 0:01:53]} 18. Bg2 {[%clk 0:00:15]}  exf5 {[%clk 0:01:53]} 19. Nc3 {[%clk 0:00:14]}  Bc5 {[%clk 0:01:52]} 20. Rd1 {[%clk 0:00:07]}  Rd8 {[%clk 0:01:39]} 21. Bd2 {[%clk 0:00:06]}  Ke7 {[%clk 0:01:39]} 22. Ne2 {[%clk 0:00:05]}  Ne4 {[%clk 0:01:35]} 23. Bc3 {[%clk 0:00:05]}  Nxc3 {[%clk 0:01:32]} 24. Nxc3 {[%clk 0:00:05]}  Rxd1+ {[%clk 0:01:23]} 25. Rxd1 {[%clk 0:00:06]}  Rd8 {[%clk 0:01:16]} 26. Rxd8 {[%clk 0:00:06]}  Kxd8 {[%clk 0:01:17]} 27. Bb7 {[%clk 0:00:07]}  b4 {[%clk 0:01:17]} 28. Na4 {[%clk 0:00:07]}  Bd6 {[%clk 0:01:10]} 29. Bxa6 {[%clk 0:00:07]}  Kc7 {[%clk 0:01:10]} 30. b3 {[%clk 0:00:06]}  Nf3+ {[%clk 0:01:05]} 31. Kg2 {[%clk 0:00:06]}  g4 {[%clk 0:01:03]} 32. h3 {[%clk 0:00:05]}  Ne1+ {[%clk 0:00:59]} 33. Kf1 {[%clk 0:00:05]}  gxh3 {[%clk 0:00:59]} 34. Bc4 {[%clk 0:00:02]}  Nf3 {[%clk 0:00:52]} 35. Bxf7 {[%clk 0:00:03]}  Nd2+ {[%clk 0:00:51]} 36. Kg1 {[%clk 0:00:03]}  Ne4 {[%clk 0:00:34]} 37. Bd5 {[%clk 0:00:03]}  Nc3 {[%clk 0:00:31]} 38. Bh1 {[%clk 0:00:02]}  Nxa2 {[%clk 0:00:30]} 39. Nb2 {[%clk 0:00:03]}  Nc1 {[%clk 0:00:30]} 40. Bd5 {[%clk 0:00:00]}  Kd7 {[%clk 0:00:28]} 0-1


[Site "https://www.chess.com"]

[Event "Titled Tuesday Blitz May 9 Early 2023"]
[White "Nakamura, Hikaru"]
[Black "Rengifo Blancas, Renzo Jhonathan"]
[WhiteFideId "2016192"]
[BlackFideId "3807185"]
[WhiteElo "2885"]
[BlackElo "2085"]
[Result "1-0"]
[Round "01"]
[TimeControl "180+2"]
[Date "2023.05.09"]
[WhiteClock "0:02:13"]
[BlackClock "0:00:07"]

1. Nf3 {[%clk 0:03:00]}  Nf6 {[%clk 0:02:58]} 2. b3 {[%clk 0:03:00]}  d5 {[%clk 0:02:57]} 3. Bb2 {[%clk 0:03:00]}  e6 {[%clk 0:02:57]} 4. c4 {[%clk 0:03:00]}  Be7 {[%clk 0:02:57]} 5. cxd5 {[%clk 0:03:00]}  exd5 {[%clk 0:02:58]} 6. e3 {[%clk 0:03:01]}  O-O {[%clk 0:02:58]} 7. Nc3 {[%clk 0:03:01]}  Be6 {[%clk 0:02:58]} 8. h4 {[%clk 0:02:56]}  c5 {[%clk 0:02:55]} 9. d4 {[%clk 0:02:57]}  Nc6 {[%clk 0:02:55]} 10. Be2 {[%clk 0:02:55]}  cxd4 {[%clk 0:02:54]} 11. Nxd4 {[%clk 0:02:55]}  Rc8 {[%clk 0:02:53]} 12. O-O {[%clk 0:02:54]}  a6 {[%clk 0:02:51]} 13. Rc1 {[%clk 0:02:52]}  Re8 {[%clk 0:02:18]} 14. Nxc6 {[%clk 0:02:50]}  Rxc6 {[%clk 0:02:18]} 15. Bf3 {[%clk 0:02:50]}  Qa5 {[%clk 0:01:50]} 16. a3 {[%clk 0:02:50]}  Rec8 {[%clk 0:01:48]} 17. b4 {[%clk 0:02:50]}  Qd8 {[%clk 0:01:48]} 18. Ne2 {[%clk 0:02:50]}  Rxc1 {[%clk 0:01:45]} 19. Bxc1 {[%clk 0:02:46]}  Ne4 {[%clk 0:01:36]} 20. Nd4 {[%clk 0:02:44]}  Nc3 {[%clk 0:01:18]} 21. Qd3 {[%clk 0:02:42]}  Qc7 {[%clk 0:00:49]} 22. Bd2 {[%clk 0:02:19]}  Na4 {[%clk 0:00:39]} 23. Nxe6 {[%clk 0:02:14]}  fxe6 {[%clk 0:00:38]} 24. Bg4 {[%clk 0:02:15]}  Qd6 {[%clk 0:00:25]} 25. e4 {[%clk 0:02:14]}  Nb6 {[%clk 0:00:24]} 26. exd5 {[%clk 0:02:13]}  Nxd5 {[%clk 0:00:24]} 27. Re1 {[%clk 0:02:13]}  Nc7 {[%clk 0:00:11]} 28. Qxd6 {[%clk 0:02:11]}  Bxd6 {[%clk 0:00:12]} 29. Rxe6 {[%clk 0:02:12]}  Nxe6 {[%clk 0:00:13]} 30. Bxe6+ {[%clk 0:02:12]}  Kf8 {[%clk 0:00:07]} 31. Bxc8 {[%clk 0:02:13]} 1-0


[Site "https://www.chess.com"]

[Event "Titled Tuesday Blitz May 9 Early 2023"]
[White "Pranav, V"]
[Black "Jaskolka, Tomasz"]
[WhiteFideId "25060783"]
[BlackFideId "1170791"]
[WhiteElo "2515"]
[BlackElo "2155"]
[Result "1-0"]
[Round "01"]
[TimeControl "180+2"]
[Date "2023.05.09"]
[WhiteClock "0:00:04"]
[BlackClock "0:00:10"]

1. e4 {[%clk 0:02:59]}  e6 {[%clk 0:02:59]} 2. d3 {[%clk 0:02:58]}  d5 {[%clk 0:02:59]} 3. Nd2 {[%clk 0:02:59]}  c5 {[%clk 0:02:56]} 4. Ngf3 {[%clk 0:02:59]}  Nc6 {[%clk 0:02:56]} 5. g3 {[%clk 0:02:57]}  g6 {[%clk 0:02:53]} 6. Bg2 {[%clk 0:02:57]}  Bg7 {[%clk 0:02:52]} 7. O-O {[%clk 0:02:58]}  Nge7 {[%clk 0:02:52]} 8. Re1 {[%clk 0:02:58]}  b6 {[%clk 0:02:52]} 9. Nf1 {[%clk 0:02:55]}  a5 {[%clk 0:02:50]} 10. h4 {[%clk 0:02:54]}  h6 {[%clk 0:02:43]} 11. exd5 {[%clk 0:02:39]}  exd5 {[%clk 0:02:43]} 12. c3 {[%clk 0:02:31]}  O-O {[%clk 0:02:37]} 13. Ne3 {[%clk 0:02:27]}  Kh7 {[%clk 0:02:19]} 14. d4 {[%clk 0:02:09]}  cxd4 {[%clk 0:01:58]} 15. cxd4 {[%clk 0:02:01]}  Be6 {[%clk 0:01:45]} 16. b3 {[%clk 0:01:55]}  Rc8 {[%clk 0:01:43]} 17. Ba3 {[%clk 0:01:53]}  Qd7 {[%clk 0:01:41]} 18. Rc1 {[%clk 0:01:48]}  Nf5 {[%clk 0:01:26]} 19. Nxf5 {[%clk 0:01:42]}  Bxf5 {[%clk 0:01:26]} 20. Bxf8 {[%clk 0:01:42]}  Rxf8 {[%clk 0:01:24]} 21. Ne5 {[%clk 0:01:38]}  Nxe5 {[%clk 0:01:24]} 22. dxe5 {[%clk 0:01:39]}  Be6 {[%clk 0:01:19]} 23. Qd4 {[%clk 0:01:36]}  b5 {[%clk 0:01:14]} 24. Rc5 {[%clk 0:01:33]}  Rd8 {[%clk 0:01:11]} 25. Bf1 {[%clk 0:01:30]}  Rb8 {[%clk 0:01:09]} 26. Rec1 {[%clk 0:01:26]}  Qa7 {[%clk 0:01:06]} 27. Rxd5 {[%clk 0:01:24]}  Qxd4 {[%clk 0:01:06]} 28. Rxd4 {[%clk 0:01:24]}  Bxe5 {[%clk 0:01:06]} 29. Rdd1 {[%clk 0:01:21]}  a4 {[%clk 0:01:04]} 30. Rc5 {[%clk 0:01:17]}  Bf6 {[%clk 0:00:48]} 31. Rxb5 {[%clk 0:01:05]}  Rxb5 {[%clk 0:00:45]} 32. Bxb5 {[%clk 0:01:06]}  axb3 {[%clk 0:00:46]} 33. axb3 {[%clk 0:01:07]}  Bxb3 {[%clk 0:00:46]} 34. Rd6 {[%clk 0:01:07]}  Kg7 {[%clk 0:00:41]} 35. Rd7 {[%clk 0:01:03]}  Be6 {[%clk 0:00:40]} 36. Rb7 {[%clk 0:01:03]}  Bd5 {[%clk 0:00:39]} 37. Ra7 {[%clk 0:00:58]}  h5 {[%clk 0:00:39]} 38. Rc7 {[%clk 0:00:56]}  Be6 {[%clk 0:00:39]} 39. Bc4 {[%clk 0:00:45]}  Bxc4 {[%clk 0:00:35]} 40. Rxc4 {[%clk 0:00:43]}  Be5 {[%clk 0:00:34]} 41. f4 {[%clk 0:00:43]}  Bd6 {[%clk 0:00:33]} 42. Kf2 {[%clk 0:00:44]}  Kf6 {[%clk 0:00:33]} 43. Kf3 {[%clk 0:00:44]}  Ke6 {[%clk 0:00:32]} 44. Re4+ {[%clk 0:00:43]}  Kf6 {[%clk 0:00:31]} 45. Ra4 {[%clk 0:00:39]}  Ke7 {[%clk 0:00:28]} 46. Ra7+ {[%clk 0:00:38]}  Ke6 {[%clk 0:00:28]} 47. Ke4 {[%clk 0:00:37]}  Bc5 {[%clk 0:00:27]} 48. Ra6+ {[%clk 0:00:36]}  Ke7 {[%clk 0:00:28]} 49. f5 {[%clk 0:00:34]}  Bd6 {[%clk 0:00:20]} 50. fxg6 {[%clk 0:00:30]}  fxg6 {[%clk 0:00:20]} 51. Kf3 {[%clk 0:00:30]}  Ke6 {[%clk 0:00:21]} 52. g4 {[%clk 0:00:24]}  hxg4+ {[%clk 0:00:21]} 53. Kxg4 {[%clk 0:00:25]}  Ke5 {[%clk 0:00:20]} 54. Rb6 {[%clk 0:00:21]}  Kd5 {[%clk 0:00:14]} 55. Ra6 {[%clk 0:00:13]}  Ke5 {[%clk 0:00:15]} 56. Ra5+ {[%clk 0:00:08]}  Ke6 {[%clk 0:00:15]} 57. Ra1 {[%clk 0:00:09]}  Kf6 {[%clk 0:00:15]} 58. Rf1+ {[%clk 0:00:08]}  Kg7 {[%clk 0:00:15]} 59. Rc1 {[%clk 0:00:08]}  Kf6 {[%clk 0:00:14]} 60. Rf1+ {[%clk 0:00:07]}  Kg7 {[%clk 0:00:14]} 61. Rf3 {[%clk 0:00:06]}  Be7 {[%clk 0:00:15]} 62. Rb3 {[%clk 0:00:05]}  Kf7 {[%clk 0:00:15]} 63. Rb6 {[%clk 0:00:05]}  Kg7 {[%clk 0:00:15]} 64. Rc6 {[%clk 0:00:04]}  Kf7 {[%clk 0:00:15]} 65. Kg3 {[%clk 0:00:04]}  Kg7 {[%clk 0:00:16]} 66. Rc4 {[%clk 0:00:04]}  Kf7 {[%clk 0:00:16]} 67. Rg4 {[%clk 0:00:05]}  Kg7 {[%clk 0:00:16]} 68. h5 {[%clk 0:00:04]}  g5 {[%clk 0:00:17]} 69. Re4 {[%clk 0:00:04]}  Bf6 {[%clk 0:00:17]} 70. Kg4 {[%clk 0:00:05]}  Kf7 {[%clk 0:00:17]} 71. Ra4 {[%clk 0:00:04]}  Kg7 {[%clk 0:00:17]} 72. Kf5 {[%clk 0:00:05]}  Bd8 {[%clk 0:00:16]} 73. Rd4 {[%clk 0:00:05]}  Bb6 {[%clk 0:00:14]} 74. Rd7+ {[%clk 0:00:05]}  Kg8 {[%clk 0:00:15]} 75. Kg6 {[%clk 0:00:04]}  g4 {[%clk 0:00:12]} 76. h6 {[%clk 0:00:04]}  g3 {[%clk 0:00:10]} 77. h7+ {[%clk 0:00:05]}  Kh8 {[%clk 0:00:10]} 78. Rb7 {[%clk 0:00:04]}  Bd8 {[%clk 0:00:09]} 79. Rg7 {[%clk 0:00:03]}  g2 {[%clk 0:00:10]} 80. Rg8# {[%clk 0:00:04]} 1-0


[Site "https://www.chess.com"]

[Event "Titled Tuesday Blitz May 9 Early 2023"]
[White "Martinez Alcantara, Jose Eduardo"]
[Black "Jovic, Stanoje"]
[WhiteFideId "3805662"]
[BlackFideId "905020"]
[WhiteElo "2711"]
[BlackElo "2236"]
[Result "1-0"]
[Round "01"]
[TimeControl "180+2"]
[Date "2023.05.09"]
[WhiteClock "0:02:19"]
[BlackClock "0:00:00"]

1. e4 {[%clk 0:02:51]}  c6 {[%clk 0:02:59]} 2. d4 {[%clk 0:02:50]}  d5 {[%clk 0:02:59]} 3. e5 {[%clk 0:02:50]}  c5 {[%clk 0:02:59]} 4. dxc5 {[%clk 0:02:50]}  e6 {[%clk 0:03:00]} 5. c3 {[%clk 0:02:49]}  Bxc5 {[%clk 0:02:59]} 6. Bd3 {[%clk 0:02:48]}  Nc6 {[%clk 0:02:56]} 7. Nf3 {[%clk 0:02:48]}  Nge7 {[%clk 0:02:55]} 8. Qe2 {[%clk 0:02:46]}  a5 {[%clk 0:02:53]} 9. h4 {[%clk 0:02:43]}  Bd7 {[%clk 0:02:51]} 10. Bf4 {[%clk 0:02:41]}  a4 {[%clk 0:02:47]} 11. Nbd2 {[%clk 0:02:41]}  Qb6 {[%clk 0:02:44]} 12. Rb1 {[%clk 0:02:41]}  Ng6 {[%clk 0:02:37]} 13. Bg3 {[%clk 0:02:40]}  Qa5 {[%clk 0:02:26]} 14. h5 {[%clk 0:02:37]}  Nge7 {[%clk 0:02:27]} 15. h6 {[%clk 0:02:38]}  g6 {[%clk 0:02:25]} 16. Bh4 {[%clk 0:02:36]}  Nf5 {[%clk 0:02:18]} 17. Bf6 {[%clk 0:02:36]}  Rg8 {[%clk 0:02:16]} 18. g4 {[%clk 0:02:36]}  Nfe7 {[%clk 0:02:14]} 19. Ng5 {[%clk 0:02:32]}  d4 {[%clk 0:02:03]} 20. O-O {[%clk 0:02:31]}  dxc3 {[%clk 0:01:56]} 21. bxc3 {[%clk 0:02:32]}  O-O-O {[%clk 0:01:50]} 22. Rb5 {[%clk 0:02:29]}  Qa7 {[%clk 0:01:46]} 23. Nde4 {[%clk 0:02:29]}  b6 {[%clk 0:01:34]} 24. Nxc5 {[%clk 0:02:27]}  bxc5 {[%clk 0:01:34]} 25. Nxf7 {[%clk 0:02:27]}  Be8 {[%clk 0:00:59]} 26. Nxd8 {[%clk 0:02:25]}  Kxd8 {[%clk 0:00:48]} 27. Rfb1 {[%clk 0:02:23]}  Bd7 {[%clk 0:00:41]} 28. Rb7 {[%clk 0:02:22]}  Qa5 {[%clk 0:00:36]} 29. Qd2 {[%clk 0:02:21]}  Ke8 {[%clk 0:00:00]} 30. Bxg6+ {[%clk 0:02:19]} 1-0


[Site "https://www.chess.com"]

[Event "Titled Tuesday Blitz May 9 Early 2023"]
[White "Yeritsyan, Hayk"]
[Black "Adhiban, B."]
[WhiteFideId "13307320"]
[BlackFideId "5018471"]
[WhiteElo "2498"]
[BlackElo "2587"]
[Result "1-0"]
[Round "01"]
[TimeControl "180+2"]
[Date "2023.05.09"]
[WhiteClock "0:00:37"]
[BlackClock "0:00:55"]

1. Nf3 {[%clk 0:02:42]}  c5 {[%clk 0:02:59]} 2. g3 {[%clk 0:02:41]}  Nc6 {[%clk 0:02:58]} 3. Bg2 {[%clk 0:02:38]}  g6 {[%clk 0:02:58]} 4. O-O {[%clk 0:02:37]}  Bg7 {[%clk 0:02:58]} 5. e4 {[%clk 0:02:37]}  d6 {[%clk 0:02:57]} 6. c3 {[%clk 0:02:35]}  e5 {[%clk 0:02:58]} 7. Na3 {[%clk 0:02:34]}  Nge7 {[%clk 0:02:57]} 8. Nc2 {[%clk 0:02:29]}  O-O {[%clk 0:02:54]} 9. d4 {[%clk 0:02:29]}  exd4 {[%clk 0:02:50]} 10. cxd4 {[%clk 0:02:28]}  Bg4 {[%clk 0:02:50]} 11. Be3 {[%clk 0:02:13]}  d5 {[%clk 0:02:47]} 12. dxc5 {[%clk 0:01:49]}  dxe4 {[%clk 0:02:34]} 13. Qxd8 {[%clk 0:01:48]}  Raxd8 {[%clk 0:02:27]} 14. Ng5 {[%clk 0:01:45]}  Be2 {[%clk 0:01:47]} 15. Rfe1 {[%clk 0:01:37]}  Bd3 {[%clk 0:01:30]} 16. Bxe4 {[%clk 0:01:22]}  Bxb2 {[%clk 0:01:21]} 17. Rab1 {[%clk 0:01:17]}  Bc3 {[%clk 0:01:21]} 18. Red1 {[%clk 0:01:16]}  Bxc2 {[%clk 0:01:20]} 19. Bxc2 {[%clk 0:01:17]}  Nf5 {[%clk 0:01:13]} 20. Bxf5 {[%clk 0:01:13]}  gxf5 {[%clk 0:01:11]} 21. Rxd8 {[%clk 0:01:13]}  Rxd8 {[%clk 0:01:12]} 22. Rxb7 {[%clk 0:01:11]}  Ne5 {[%clk 0:01:10]} 23. Bf4 {[%clk 0:01:00]}  Ng4 {[%clk 0:01:05]} 24. Nxf7 {[%clk 0:00:54]}  Rd1+ {[%clk 0:01:03]} 25. Kg2 {[%clk 0:00:54]}  Re1 {[%clk 0:00:58]} 26. Nh6+ {[%clk 0:00:51]}  Kf8 {[%clk 0:00:59]} 27. Nxg4 {[%clk 0:00:37]}  fxg4 {[%clk 0:01:00]} 28. c6 {[%clk 0:00:37]}  Ba5 {[%clk 0:00:55]} 29. c7 {[%clk 0:00:37]} 1-0


[Site "https://www.chess.com"]

[Event "Titled Tuesday Blitz May 9 Early 2023"]
[White "Bortnyk, Olexandr"]
[Black "Degenbaev, Aziz"]
[WhiteFideId "14120828"]
[BlackFideId "13802640"]
[WhiteElo "2734"]
[BlackElo "2152"]
[Result "1-0"]
[Round "01"]
[TimeControl "180+2"]
[Date "2023.05.09"]
[WhiteClock "0:00:05"]
[BlackClock "0:00:06"]

1. e4 {[%clk 0:02:59]}  c5 {[%clk 0:02:59]} 2. c3 {[%clk 0:02:57]}  Nf6 {[%clk 0:02:59]} 3. e5 {[%clk 0:02:58]}  Nd5 {[%clk 0:02:59]} 4. d4 {[%clk 0:02:58]}  cxd4 {[%clk 0:02:59]} 5. Nf3 {[%clk 0:02:59]}  Nc6 {[%clk 0:02:56]} 6. cxd4 {[%clk 0:02:58]}  d6 {[%clk 0:02:55]} 7. Bc4 {[%clk 0:02:57]}  dxe5 {[%clk 0:02:54]} 8. dxe5 {[%clk 0:02:48]}  Ndb4 {[%clk 0:02:54]} 9. Qb3 {[%clk 0:02:39]}  e6 {[%clk 0:02:41]} 10. O-O {[%clk 0:02:31]}  Bc5 {[%clk 0:02:20]} 11. a3 {[%clk 0:02:15]}  Na6 {[%clk 0:02:12]} 12. Bxa6 {[%clk 0:02:09]}  bxa6 {[%clk 0:02:12]} 13. Qc2 {[%clk 0:02:09]}  Qb6 {[%clk 0:02:08]} 14. Nc3 {[%clk 0:02:03]}  Nd4 {[%clk 0:02:00]} 15. Nxd4 {[%clk 0:01:56]}  Bxd4 {[%clk 0:02:01]} 16. Rd1 {[%clk 0:01:39]}  Bxc3 {[%clk 0:01:20]} 17. Qxc3 {[%clk 0:01:20]}  O-O {[%clk 0:01:13]} 18. Be3 {[%clk 0:01:20]}  Qb5 {[%clk 0:01:08]} 19. a4 {[%clk 0:01:20]}  Qe2 {[%clk 0:01:06]} 20. Qc7 {[%clk 0:01:01]}  a5 {[%clk 0:00:54]} 21. Rd2 {[%clk 0:00:39]}  Qa6 {[%clk 0:00:36]} 22. Rc1 {[%clk 0:00:35]}  Qb7 {[%clk 0:00:19]} 23. Qxa5 {[%clk 0:00:31]}  Qe4 {[%clk 0:00:16]} 24. Rd4 {[%clk 0:00:26]}  Qf5 {[%clk 0:00:12]} 25. Qb5 {[%clk 0:00:23]}  a5 {[%clk 0:00:08]} 26. h4 {[%clk 0:00:11]}  Ba6 {[%clk 0:00:08]} 27. Qxa5 {[%clk 0:00:11]}  Bb7 {[%clk 0:00:06]} 28. Qb5 {[%clk 0:00:09]}  Bd5 {[%clk 0:00:06]} 29. a5 {[%clk 0:00:04]}  Rfb8 {[%clk 0:00:06]} 30. Qc5 {[%clk 0:00:04]}  h6 {[%clk 0:00:06]} 31. b4 {[%clk 0:00:04]}  Qg6 {[%clk 0:00:05]} 32. g3 {[%clk 0:00:03]}  Qf5 {[%clk 0:00:04]} 33. Rf4 {[%clk 0:00:01]}  Qh3 {[%clk 0:00:04]} 34. f3 {[%clk 0:00:01]}  Qxg3+ {[%clk 0:00:04]} 35. Kf1 {[%clk 0:00:01]}  Qh3+ {[%clk 0:00:05]} 36. Ke2 {[%clk 0:00:01]}  Qg2+ {[%clk 0:00:05]} 37. Bf2 {[%clk 0:00:02]}  Rc8 {[%clk 0:00:03]} 38. Qxc8+ {[%clk 0:00:02]}  Rxc8 {[%clk 0:00:04]} 39. Rxc8+ {[%clk 0:00:02]}  Kh7 {[%clk 0:00:04]} 40. Rxf7 {[%clk 0:00:02]}  Qg6 {[%clk 0:00:04]} 41. Rcc7 {[%clk 0:00:02]}  Qb1 {[%clk 0:00:04]} 42. Rxg7+ {[%clk 0:00:02]}  Kh8 {[%clk 0:00:04]} 43. Rh7+ {[%clk 0:00:03]}  Kg8 {[%clk 0:00:05]} 44. Rcg7+ {[%clk 0:00:03]}  Kf8 {[%clk 0:00:05]} 45. Bc5+ {[%clk 0:00:04]}  Ke8 {[%clk 0:00:06]} 46. Rh8# {[%clk 0:00:05]} 1-0


[Site "https://www.chess.com"]

[Event "Titled Tuesday Blitz May 9 Early 2023"]
[White "Sargsyan, Shant"]
[Black "Namitbir Singh Walia"]
[WhiteFideId "13306766"]
[BlackFideId "35071068"]
[WhiteElo "2628"]
[BlackElo "2239"]
[Result "1/2-1/2"]
[Round "01"]
[TimeControl "180+2"]
[Date "2023.05.09"]
[WhiteClock "0:00:02"]
[BlackClock "0:00:03"]

1. c4 {[%clk 0:03:00]}  Nf6 {[%clk 0:02:55]} 2. g3 {[%clk 0:03:00]}  e5 {[%clk 0:02:47]} 3. Bg2 {[%clk 0:03:00]}  d5 {[%clk 0:02:39]} 4. cxd5 {[%clk 0:03:01]}  Nxd5 {[%clk 0:02:40]} 5. Nc3 {[%clk 0:03:01]}  Nb6 {[%clk 0:02:38]} 6. d3 {[%clk 0:03:02]}  Be7 {[%clk 0:02:38]} 7. Be3 {[%clk 0:03:02]}  O-O {[%clk 0:02:37]} 8. Rc1 {[%clk 0:03:03]}  c6 {[%clk 0:02:29]} 9. Nf3 {[%clk 0:03:01]}  N8d7 {[%clk 0:02:19]} 10. O-O {[%clk 0:03:01]}  Nd5 {[%clk 0:02:16]} 11. Bd2 {[%clk 0:02:58]}  Bd6 {[%clk 0:02:11]} 12. a3 {[%clk 0:02:55]}  N7b6 {[%clk 0:02:05]} 13. Ne4 {[%clk 0:02:53]}  Bc7 {[%clk 0:02:02]} 14. Nc5 {[%clk 0:02:53]}  Qe7 {[%clk 0:01:53]} 15. Qc2 {[%clk 0:02:47]}  h6 {[%clk 0:01:49]} 16. Rfe1 {[%clk 0:02:44]}  Nd7 {[%clk 0:01:45]} 17. e4 {[%clk 0:02:39]}  N5b6 {[%clk 0:01:39]} 18. Bb4 {[%clk 0:02:37]}  Bd6 {[%clk 0:01:37]} 19. d4 {[%clk 0:02:36]}  exd4 {[%clk 0:01:34]} 20. Nxd4 {[%clk 0:02:33]}  Nxc5 {[%clk 0:01:33]} 21. Bxc5 {[%clk 0:02:34]}  Bxc5 {[%clk 0:01:33]} 22. Qxc5 {[%clk 0:02:35]}  Qxc5 {[%clk 0:01:30]} 23. Rxc5 {[%clk 0:02:36]}  Rd8 {[%clk 0:01:31]} 24. Rd1 {[%clk 0:02:25]}  Bg4 {[%clk 0:01:30]} 25. f3 {[%clk 0:02:25]}  Be6 {[%clk 0:01:28]} 26. Rcc1 {[%clk 0:02:22]}  Bc4 {[%clk 0:01:26]} 27. Kf2 {[%clk 0:02:19]}  Kf8 {[%clk 0:01:21]} 28. h4 {[%clk 0:02:16]}  Ba6 {[%clk 0:01:15]} 29. b3 {[%clk 0:02:14]}  g6 {[%clk 0:01:05]} 30. h5 {[%clk 0:02:14]}  Ke7 {[%clk 0:01:02]} 31. hxg6 {[%clk 0:02:10]}  fxg6 {[%clk 0:01:03]} 32. Bh3 {[%clk 0:02:10]}  Rd6 {[%clk 0:01:02]} 33. Ke3 {[%clk 0:01:48]}  Rad8 {[%clk 0:01:03]} 34. Rc5 {[%clk 0:01:44]}  Nd7 {[%clk 0:01:01]} 35. Bxd7 {[%clk 0:01:43]}  R6xd7 {[%clk 0:00:56]} 36. f4 {[%clk 0:01:41]}  Bb5 {[%clk 0:00:35]} 37. a4 {[%clk 0:01:27]}  b6 {[%clk 0:00:18]} 38. Re5+ {[%clk 0:01:21]}  Kf7 {[%clk 0:00:18]} 39. axb5 {[%clk 0:01:01]}  c5 {[%clk 0:00:19]} 40. Ra1 {[%clk 0:00:52]}  Rxd4 {[%clk 0:00:16]} 41. Rxa7+ {[%clk 0:00:51]}  Kf6 {[%clk 0:00:17]} 42. Rd5 {[%clk 0:00:47]}  R8xd5 {[%clk 0:00:16]} 43. exd5 {[%clk 0:00:48]}  Rb4 {[%clk 0:00:17]} 44. d6 {[%clk 0:00:42]}  Rxb3+ {[%clk 0:00:16]} 45. Ke4 {[%clk 0:00:42]}  Rxb5 {[%clk 0:00:16]} 46. Kd5 {[%clk 0:00:39]}  Rb4 {[%clk 0:00:16]} 47. Kc6 {[%clk 0:00:37]}  Rd4 {[%clk 0:00:16]} 48. Ra8 {[%clk 0:00:36]}  c4 {[%clk 0:00:16]} 49. d7 {[%clk 0:00:09]}  c3 {[%clk 0:00:16]} 50. Rf8+ {[%clk 0:00:09]}  Ke7 {[%clk 0:00:13]} 51. Re8+ {[%clk 0:00:10]}  Kf7 {[%clk 0:00:13]} 52. Re3 {[%clk 0:00:06]}  Rc4+ {[%clk 0:00:09]} 53. Kd5 {[%clk 0:00:05]}  Rc5+ {[%clk 0:00:06]} 54. Kd6 {[%clk 0:00:05]}  Rc4 {[%clk 0:00:06]} 55. Kd5 {[%clk 0:00:04]}  Rc5+ {[%clk 0:00:04]} 56. Kd4 {[%clk 0:00:03]}  c2 {[%clk 0:00:03]} 57. d8=Q {[%clk 0:00:03]}  Rc4+ {[%clk 0:00:02]} 58. Kd5 {[%clk 0:00:02]}  Rc5+ {[%clk 0:00:03]} 59. Kd4 {[%clk 0:00:01]}  Rc4+ {[%clk 0:00:03]} 60. Kd3 {[%clk 0:00:02]}  Rc3+ {[%clk 0:00:02]} 61. Kd4 {[%clk 0:00:02]}  Rc4+ {[%clk 0:00:03]} 1/2-1/2


[Site "https://www.chess.com"]

[Event "Titled Tuesday Blitz May 9 Early 2023"]
[White "Staudenhocker43"]
[Black "Tang, Andrew"]
[BlackFideId "2059630"]
[WhiteElo "2492"]
[BlackElo "2596"]
[Result "0-1"]
[Round "01"]
[TimeControl "180+2"]
[Date "2023.05.09"]
[WhiteClock "0:00:04"]
[BlackClock "0:00:06"]

1. d4 {[%clk 0:02:58]}  d5 {[%clk 0:02:59]} 2. c4 {[%clk 0:02:58]}  e6 {[%clk 0:03:00]} 3. Nf3 {[%clk 0:02:57]}  Nf6 {[%clk 0:03:00]} 4. Nc3 {[%clk 0:02:58]}  Be7 {[%clk 0:03:00]} 5. Bf4 {[%clk 0:02:57]}  O-O {[%clk 0:03:00]} 6. e3 {[%clk 0:02:57]}  b6 {[%clk 0:03:00]} 7. Bd3 {[%clk 0:02:55]}  c5 {[%clk 0:03:00]} 8. cxd5 {[%clk 0:02:52]}  Nxd5 {[%clk 0:02:58]} 9. Nxd5 {[%clk 0:02:51]}  exd5 {[%clk 0:02:59]} 10. O-O {[%clk 0:02:50]}  c4 {[%clk 0:03:00]} 11. Bc2 {[%clk 0:02:50]}  b5 {[%clk 0:02:51]} 12. Ne5 {[%clk 0:02:45]}  Be6 {[%clk 0:02:48]} 13. e4 {[%clk 0:02:29]}  f6 {[%clk 0:02:11]} 14. Nf3 {[%clk 0:02:27]}  Nc6 {[%clk 0:02:10]} 15. h3 {[%clk 0:02:15]}  Qd7 {[%clk 0:02:06]} 16. Re1 {[%clk 0:02:14]}  Rae8 {[%clk 0:02:05]} 17. Bh2 {[%clk 0:02:06]}  Rd8 {[%clk 0:01:54]} 18. e5 {[%clk 0:01:49]}  f5 {[%clk 0:01:50]} 19. a3 {[%clk 0:01:43]}  a5 {[%clk 0:01:42]} 20. Qd2 {[%clk 0:01:43]}  h6 {[%clk 0:01:38]} 21. h4 {[%clk 0:01:40]}  Qe8 {[%clk 0:01:22]} 22. Bd1 {[%clk 0:01:20]}  Ra8 {[%clk 0:01:08]} 23. Bf4 {[%clk 0:01:13]}  Qg6 {[%clk 0:00:58]} 24. g3 {[%clk 0:01:06]}  Rfb8 {[%clk 0:00:29]} 25. Kg2 {[%clk 0:00:42]}  b4 {[%clk 0:00:27]} 26. Ba4 {[%clk 0:00:42]}  Nd8 {[%clk 0:00:26]} 27. Qe3 {[%clk 0:00:29]}  Nf7 {[%clk 0:00:21]} 28. Rh1 {[%clk 0:00:20]}  Qh5 {[%clk 0:00:12]} 29. Bd1 {[%clk 0:00:19]}  Qg6 {[%clk 0:00:11]} 30. h5 {[%clk 0:00:19]}  Qh7 {[%clk 0:00:12]} 31. Ba4 {[%clk 0:00:17]}  Rb6 {[%clk 0:00:06]} 32. axb4 {[%clk 0:00:13]}  axb4 {[%clk 0:00:06]} 33. Bc2 {[%clk 0:00:13]}  Rab8 {[%clk 0:00:04]} 34. Ra7 {[%clk 0:00:13]}  R6b7 {[%clk 0:00:04]} 35. Rha1 {[%clk 0:00:12]}  Ng5 {[%clk 0:00:03]} 36. Nxg5 {[%clk 0:00:11]}  hxg5 {[%clk 0:00:04]} 37. Bxg5 {[%clk 0:00:12]}  Bf8 {[%clk 0:00:04]} 38. g4 {[%clk 0:00:11]}  c3 {[%clk 0:00:03]} 39. bxc3 {[%clk 0:00:11]}  b3 {[%clk 0:00:03]} 40. Bb1 {[%clk 0:00:11]}  b2 {[%clk 0:00:03]} 41. R1a2 {[%clk 0:00:11]}  g6 {[%clk 0:00:03]} 42. h6 {[%clk 0:00:10]}  Rxa7 {[%clk 0:00:04]} 43. Rxa7 {[%clk 0:00:10]}  Qxa7 {[%clk 0:00:05]} 44. gxf5 {[%clk 0:00:10]}  gxf5 {[%clk 0:00:05]} 45. Qg3 {[%clk 0:00:10]}  Kh7 {[%clk 0:00:05]} 46. Bf6 {[%clk 0:00:10]}  Qf7 {[%clk 0:00:05]} 47. Qg5 {[%clk 0:00:10]}  Qg6 {[%clk 0:00:05]} 48. f4 {[%clk 0:00:08]}  Bxh6 {[%clk 0:00:05]} 49. Qxg6+ {[%clk 0:00:04]}  Kxg6 {[%clk 0:00:06]} 0-1


[Site "https://www.chess.com"]